bitfinex/quotes_BTCUSD_20250619
["timestamp","ask_amount","ask_price","bid_price","bid_amount"]
[1750350078538,1.08600976,104500.0,104490.0,0.34150306]
[1750350078977,1.08600976,104500.0,104490.0,0.34350306]
[1750350079193,0.01913737,104500.0,104490.0,0.45792156]
[1750350079407,0.7058094,104500.0,104490.0,0.12338659]
[1750350079652,0.7058094,104500.0,104490.0,0.33393267]
[1750350079879,0.71537868,104500.0,104490.0,0.34350259]
[1750350080323,0.72494805,104500.0,104490.0,0.35307242]
[1750350081015,0.72494805,104500.0,104490.0,0.34350259]
[1750350081222,0.72494805,104500.0,104490.0,0.35307242]
[1750350081657,0.22966431,104500.0,104490.0,0.33393267]
[1750350081844,0.72494805,104500.0,104490.0,0.34350259]
[1750350082105,0.69624066,104500.0,104490.0,0.24799753]
[1750350082317,0.69624066,104500.0,104490.0,0.0693]
[1750350083002,0.20095692,104500.0,104490.0,0.0363]
[1750350083209,0.69624066,104500.0,104490.0,0.0363]
[1750350083421,0.20095692,104500.0,104490.0,0.004]
[1750350083630,0.73644066,104500.0,104490.0,0.004]
[1750350084502,0.73644066,104500.0,104490.0,0.0349]
[1750350084715,0.73644066,104500.0,104490.0,0.0665]
[1750350086199,0.73644066,104500.0,104490.0,0.11267745]
[1750350086419,0.73644066,104500.0,104490.0,0.0665]
[1750350086630,0.24115692,104500.0,104490.0,0.08932041]
[1750350086851,0.73644066,104500.0,104490.0,0.08932041]
[1750350088179,0.24115692,104500.0,104490.0,0.08932041]
[1750350088398,0.24115692,104500.0,104490.0,0.10368293]
[1750350088611,0.73644066,104500.0,104490.0,0.30465909]
[1750350089241,0.24115692,104500.0,104490.0,0.32379921]
[1750350089451,0.73644066,104500.0,104490.0,0.31422929]
[1750350089871,0.73644066,104500.0,104490.0,0.3237993]
[1750350090530,0.73644066,104500.0,104490.0,0.33336922]
[1750350090744,0.73644066,104500.0,104490.0,0.34293905]
[1750350090970,0.69624066,104500.0,104490.0,0.34293905]
[1750350091185,0.06890629,104500.0,104490.0,0.43821734]
[1750350091393,0.07847548,104500.0,104490.0,0.43821734]
[1750350091605,0.06890629,104500.0,104490.0,0.43821734]
[1750350091994,0.07847539,104500.0,104490.0,0.43821734]
[1750350092240,0.06890629,104500.0,104490.0,0.43821734]
[1750350092451,0.07847539,104500.0,104490.0,0.43821734]
[1750350092658,0.06890629,104500.0,104490.0,0.43821734]
[1750350093077,0.07847539,104500.0,104490.0,0.43821734]
[1750350093714,0.08804458,104500.0,104490.0,0.43821734]
[1750350094374,0.07847539,104500.0,104490.0,0.43821734]
[1750350094611,0.06890629,104500.0,104490.0,0.43821734]
[1750350094823,0.02870629,104500.0,104490.0,0.43821734]
[1750350095266,0.03827539,104500.0,104490.0,0.43821734]
[1750350096441,0.04784458,104500.0,104490.0,0.43821734]
[1750350096859,0.03827539,104500.0,104490.0,0.43821734]
[1750350098061,0.02870629,104500.0,104490.0,0.43821734]
[1750350098316,0.03827539,104500.0,104490.0,0.45001479]
[1750350098523,0.88771429,104510.0,104500.0,0.25598755]
[1750350098740,1.07910021,104510.0,104500.0,0.51817677]
[1750350098953,1.07910021,104510.0,104500.0,0.52774596]
[1750350099344,1.07910021,104510.0,104500.0,0.51817677]
[1750350099749,1.07910021,104510.0,104500.0,0.49903812]
[1750350100198,1.07910021,104510.0,104500.0,0.50860731]
[1750350100827,1.03890021,104510.0,104500.0,0.50860731]
[1750350101040,1.07910021,104510.0,104500.0,0.50860731]
[1750350101456,1.03890021,104510.0,104500.0,0.50860731]
[1750350101671,1.07910021,104510.0,104500.0,0.50860731]
[1750350102205,1.07910021,104510.0,104500.0,0.49903812]
[1750350102441,1.07910021,104510.0,104500.0,0.24330041]
[1750350102901,1.07910021,104510.0,104500.0,0.29794643]
[1750350103146,1.06691966,104510.0,104500.0,0.29794643]
[1750350104418,1.06691966,104510.0,104500.0,0.28837733]
[1750350105046,1.06691966,104510.0,104500.0,0.29889415]
[1750350105255,1.06691966,104510.0,104500.0,0.30846343]
[1750350105503,1.06691966,104510.0,104500.0,0.31803262]
[1750350105715,1.06691966,104510.0,104500.0,0.30846343]
[1750350106161,1.07893154,104510.0,104500.0,0.30846343]
[1750350106574,0.5836478,104510.0,104500.0,0.30846343]
[1750350106779,1.07893154,104510.0,104500.0,0.30846343]
[1750350106986,1.07867922,104510.0,104500.0,0.30846343]
[1750350108914,1.07867922,104510.0,104500.0,0.28932478]
[1750350109522,1.07867922,104510.0,104500.0,0.09793723]
[1750350110186,1.07867922,104510.0,104500.0,0.28932478]
[1750350111026,1.07867922,104510.0,104500.0,0.09793723]
[1750350111235,0.5836478,104510.0,104500.0,0.28932478]
[1750350111442,1.07867922,104510.0,104500.0,0.28932478]
[1750350112562,0.5836478,104510.0,104500.0,0.29889406]
[1750350112775,0.02875409,104510.0,104500.0,0.3180318]
[1750350112987,0.52378551,104510.0,104500.0,0.41331073]
[1750350113835,0.50464924,104510.0,104500.0,0.41331073]
[1750350114061,0.49508142,104510.0,104500.0,0.44191798]
[1750350114278,0.00961763,104510.0,104500.0,0.9369494]
[1750350114491,5e-05,104510.0,104500.0,0.9369494]
[1750350114697,5e-05,104510.0,104500.0,0.48008844]
[1750350115363,0.00961763,104510.0,104500.0,0.44191798]
[1750350115576,0.00961763,104510.0,104500.0,0.48008844]
[1750350117089,5e-05,104510.0,104500.0,0.48008844]
[1750350118123,5e-05,104510.0,104500.0,0.97496478]
[1750350119122,5e-05,104510.0,104500.0,0.48008844]
[1750350119514,0.00961772,104510.0,104500.0,0.48008844]
[1750350120900,0.01918554,104510.0,104500.0,0.48008844]
[1750350121102,0.00961772,104510.0,104500.0,0.48008844]
[1750350122201,5e-05,104510.0,104500.0,0.48008844]
[1750350122652,5e-05,104510.0,104500.0,0.97496478]
[1750350124987,5e-05,104510.0,104500.0,0.97896478]
[1750350125669,5e-05,104510.0,104500.0,0.48408844]
[1750350125888,0.00961772,104510.0,104500.0,0.48408844]
[1750350126307,0.00961772,104510.0,104500.0,0.48608844]
[1750350126745,0.01918563,104510.0,104500.0,0.48608844]
[1750350127176,0.01918563,104510.0,104500.0,0.50526844]
[1750350127604,0.70543185,104510.0,104500.0,0.23648659]
[1750350127842,0.21055551,104510.0,104500.0,0.20376041]
[1750350128052,0.73653185,104510.0,104500.0,0.20376041]
[1750350128254,0.76723185,104510.0,104500.0,0.20376041]
[1750350128484,0.76723185,104510.0,104500.0,0.04800041]
[1750350128707,0.76723185,104510.0,104500.0,0.02518]
[1750350130649,0.25075551,104510.0,104500.0,0.28993683]
[1750350130860,0.74563185,104510.0,104500.0,0.28993683]
[1750350131075,0.73606385,104510.0,104500.0,0.08898]
[1750350131498,0.73606385,104510.0,104500.0,0.1392828]
[1750350132200,0.73606385,104510.0,104500.0,0.1201028]
[1750350132823,0.73606385,104510.0,104500.0,0.31149035]
[1750350133044,0.24118751,104510.0,104500.0,0.32105972]
[1750350133250,0.73606385,104510.0,104500.0,0.32105972]
[1750350133493,0.73606385,104510.0,104500.0,0.1201028]
[1750350133898,0.69586385,104510.0,104500.0,0.1201028]
[1750350134107,0.73606385,104510.0,104500.0,0.1201028]
[1750350135172,0.73606385,104510.0,104500.0,0.006]
[1750350141860,0.24118751,104510.0,104500.0,0.006]
[1750350142084,0.73606385,104510.0,104500.0,0.006]
[1750350145203,0.73606385,104510.0,104500.0,0.0365]
[1750350145416,0.73606385,104510.0,104500.0,0.0677]
[1750350147141,0.73606385,104510.0,104500.0,0.08688]
[1750350150273,0.73606385,104510.0,104500.0,0.13698877]
[1750350150684,0.73606385,104510.0,104500.0,0.08688]
[1750350154260,0.73606385,104510.0,104500.0,0.27826755]
[1750350154483,0.73606385,104510.0,104500.0,0.08688]
[1750350161079,0.73618466,104510.0,104500.0,0.08688]
[1750350162238,0.73618466,104510.0,104500.0,0.0677]
[1750350166708,0.20098751,104510.0,104500.0,0.25908755]
[1750350166936,0.73626466,104510.0,104500.0,0.32161784]
[1750350167176,0.73626466,104510.0,104500.0,0.35022509]
[1750350167830,0.00961772,104510.0,104500.0,0.86435998]
[1750350168100,0.01918563,104510.0,104500.0,0.99780937]
[1750350168352,5e-05,104510.0,104500.0,0.96920212]
[1750350168795,0.00961763,104510.0,104500.0,0.96920212]
[1750350169005,0.00961763,104510.0,104500.0,0.47420497]
[1750350169233,0.01918545,104510.0,104500.0,0.47420497]
[1750350169459,0.01918545,104510.0,104500.0,0.99775965]
[1750350169679,0.01918545,104510.0,104500.0,0.5027625]
[1750350169886,0.01918545,104510.0,104500.0,0.99775965]
[1750350170180,0.01918545,104510.0,104500.0,0.5027625]
[1750350170410,0.7246882,104510.0,104500.0,0.49319377]
[1750350170648,0.69598466,104510.0,104500.0,0.19153646]
[1750350170887,0.69608424,104510.0,104500.0,0.0677]
[1750350171574,0.69608424,104510.0,104500.0,0.006]
[1750350172273,0.69608424,104510.0,104500.0,0.02518]
[1750350174126,0.69608424,104510.0,104500.0,0.08868]
[1750350174355,0.73636424,104510.0,104500.0,0.08868]
[1750350176722,0.24126751,104510.0,104500.0,0.08868]
[1750350176936,1.15470203,104510.0,104500.0,0.006]
[1750350177148,1.13676424,104510.0,104500.0,0.006]
[1750350177373,1.15469768,104510.0,104500.0,0.006]
[1750350177821,0.21054581,104490.0,104480.0,0.21834]
[1750350178032,0.70564254,104490.0,104480.0,0.0625]
[1750350178502,0.70564254,104490.0,104480.0,0.21834]
[1750350179415,0.70564254,104490.0,104480.0,0.22234]
[1750350180100,0.70564254,104490.0,104480.0,0.22434]
[1750350181313,0.70564254,104490.0,104480.0,0.2243]
[1750350181748,0.70564254,104490.0,104480.0,0.29258531]
[1750350182655,0.70564254,104490.0,104480.0,0.4935807]
[1750350182889,0.70564254,104490.0,104480.0,0.29262531]
[1750350183103,0.70564254,104490.0,104480.0,0.4840495]
[1750350183315,0.70564254,104490.0,104480.0,0.4936207]
[1750350183526,0.69607271,104490.0,104480.0,0.4936207]
[1750350184156,0.20097598,104490.0,104480.0,0.50319163]
[1750350184421,0.20097598,104490.0,104480.0,0.61761196]
[1750350184422,0.02870995,104490.0,104480.0,0.61761196]
[1750350184638,0.02870931,104490.0,104480.0,0.64616949]
[1750350185110,0.03827932,104490.0,104480.0,0.64616949]
[1750350185350,0.04784943,104490.0,104480.0,0.64616949]
[1750350186882,0.72478293,104490.0,104480.0,0.56831362]
[1750350187102,0.71521301,104490.0,104480.0,0.54917185]
[1750350187314,0.705643,104490.0,104480.0,0.22446]
[1750350187531,0.705643,104490.0,104480.0,0.41588419]
[1750350187747,0.705643,104490.0,104480.0,0.42545539]
[1750350187976,0.705643,104490.0,104480.0,0.50717358]
[1750350188193,0.21054627,104490.0,104480.0,0.5167446]
[1750350188411,0.705643,104490.0,104480.0,0.5167446]
[1750350188854,0.705643,104490.0,104480.0,0.52631553]
[1750350189776,0.69607289,104490.0,104480.0,0.5167446]
[1750350192211,0.69607289,104490.0,104480.0,0.5359246]
[1750350192946,0.6865026,104490.0,104480.0,0.52635358]
[1750350194139,0.6865026,104490.0,104480.0,0.52639358]
[1750350194872,0.6865026,104490.0,104480.0,0.53596469]
[1750350195110,0.19140587,104490.0,104480.0,0.54553571]
[1750350196326,0.6865026,104490.0,104480.0,0.53596469]
[1750350197380,0.6865026,104490.0,104480.0,0.52639358]
[1750350197683,0.6865026,104490.0,104480.0,0.0685]
[1750350197905,1.24349933,104490.0,104480.0,0.16192]
[1750350198147,1.58349933,104490.0,104480.0,0.006]
[1750350198364,6.90266199,104490.0,104480.0,0.006]
[1750350198588,0.02871773,104460.0,104450.0,0.31435293]
[1750350198837,0.02871773,104460.0,104450.0,0.56559195]
[1750350198838,0.7152753,104460.0,104450.0,0.56559195]
[1750350199076,0.52381446,104460.0,104450.0,0.57516545]
[1750350199305,0.52381446,104460.0,104450.0,0.58473876]
[1750350199620,0.01914488,104460.0,104450.0,0.58473876]
[1750350199866,0.01914488,104460.0,104450.0,0.68000861]
[1750350200107,0.01914488,104460.0,104450.0,0.53004861]
[1750350200339,0.01914488,104460.0,104450.0,0.68616861]
[1750350200607,0.02871764,104460.0,104450.0,0.68616861]
[1750350200854,0.03829049,104460.0,104450.0,0.68616861]
[1750350201540,0.02871764,104460.0,104450.0,0.68616861]
[1750350201753,0.03829049,104460.0,104450.0,0.68616861]
[1750350202200,0.03829049,104460.0,104450.0,0.70534861]
[1750350202643,0.03829049,104460.0,104450.0,0.61007876]
[1750350204184,0.01914488,104460.0,104450.0,0.61007876]
[1750350204726,0.02871773,104460.0,104450.0,0.61007876]
[1750350204927,0.0095723,104460.0,104450.0,0.61007876]
[1750350205361,0.02871764,104460.0,104450.0,0.61007876]
[1750350205518,0.02871764,104460.0,104450.0,0.70534861]
[1750350205929,0.02871755,104460.0,104450.0,0.70534861]
[1750350206936,0.0382904,104460.0,104450.0,0.70534861]
[1750350209343,0.22975189,104460.0,104450.0,0.66705444]
[1750350209565,0.24095103,104460.0,104450.0,0.43480278]
[1750350209776,0.22975189,104460.0,104450.0,0.60037628]
[1750350210005,0.23932493,104460.0,104450.0,0.60037628]
[1750350210233,0.0287181,104460.0,104450.0,0.50510643]
[1750350210455,0.0287181,104460.0,104450.0,0.51467974]
[1750350210670,0.0095723,104460.0,104450.0,0.50070524]
[1750350210900,0.02871773,104460.0,104450.0,0.50070524]
[1750350211120,0.02871755,104460.0,104450.0,0.50070524]
[1750350211544,0.0382904,104460.0,104450.0,0.50070524]
[1750350211778,0.54498876,104470.0,104460.0,0.0637]
[1750350211997,0.73644799,104470.0,104460.0,0.0637]
[1750350212439,0.73644799,104470.0,104460.0,0.26473388]
[1750350212655,0.73644799,104470.0,104460.0,0.0637]
[1750350212893,0.19146084,104460.0,104450.0,0.56782251]
[1750350213114,0.02871856,104460.0,104450.0,0.57739591]
[1750350213571,0.03829123,104460.0,104450.0,0.58696922]
[1750350214038,0.03829123,104460.0,104450.0,0.55441169]
[1750350214491,0.04786381,104460.0,104450.0,0.55437169]
[1750350214990,0.04786381,104460.0,104450.0,0.55637169]
[1750350215434,0.04786381,104460.0,104450.0,0.56037169]
[1750350216365,0.23932511,104460.0,104450.0,0.56037169]
[1750350217024,0.04786427,104460.0,104450.0,0.56037169]
[1750350217441,0.22975244,104460.0,104450.0,0.54122498]
[1750350217659,0.22975244,104460.0,104450.0,0.55079838]
[1750350217864,0.22975244,104460.0,104450.0,0.56037169]
[1750350218501,0.0382916,104460.0,104450.0,0.56037169]
[1750350218923,0.02871856,104460.0,104450.0,0.56037169]
[1750350219563,0.2201794,104460.0,104450.0,0.56037169]
[1750350220231,0.22975244,104460.0,104450.0,0.53165148]
[1750350220448,0.22975244,104460.0,104450.0,0.37569148]
[1750350220660,0.22975244,104460.0,104450.0,0.53161148]
[1750350221347,0.22017968,104460.0,104450.0,0.52203789]
[1750350221551,0.21060683,104460.0,104450.0,0.56016747]
[1750350221761,0.21060683,104460.0,104450.0,0.56974115]
[1750350222212,0.21060683,104460.0,104450.0,0.43300115]
[1750350222427,0.70570356,104460.0,104450.0,0.58888115]
[1750350222657,0.21060683,104460.0,104450.0,0.58888115]
[1750350223079,0.21060683,104460.0,104450.0,0.59845474]
[1750350224204,0.21060683,104460.0,104450.0,0.58888115]
[1750350224936,0.19146084,104460.0,104450.0,0.56032534]
[1750350226899,0.19146084,104460.0,104450.0,0.58888115]
[1750350227110,0.19146084,104460.0,104450.0,0.59845474]
[1750350229494,0.19146084,104460.0,104450.0,0.58888115]
[1750350229928,0.19146084,104460.0,104450.0,0.57930747]
[1750350230381,0.19146084,104460.0,104450.0,0.56015984]
[1750350231026,0.19146084,104460.0,104450.0,0.57930765]
[1750350232316,0.19146084,104460.0,104450.0,0.58888142]
[1750350232757,0.19146084,104460.0,104450.0,0.57930765]
[1750350233823,1.5843543,104460.0,104450.0,0.0061]
[1750350234033,1.61346924,104460.0,104450.0,0.0061]
[1750350234277,1.60231051,104460.0,104450.0,0.0061]
[1750350234909,1.60231051,104460.0,104450.0,0.0041]
[1750350235332,1.60228827,104460.0,104450.0,0.0041]
[1750350236016,1.5843543,104460.0,104450.0,0.0041]
[1750350236230,1.5843543,104460.0,104450.0,0.0011]
[1750350236467,0.0191447,104460.0,104450.0,0.23832763]
[1750350236685,0.2201783,104460.0,104450.0,0.52407665]
[1750350236899,0.71527567,104460.0,104450.0,0.44778893]
[1750350237111,0.71527567,104460.0,104450.0,0.45736279]
[1750350237328,0.70570318,104460.0,104450.0,0.09065581]
[1750350237573,0.70570318,104460.0,104450.0,0.15634]
[1750350237798,0.70570318,104460.0,104450.0,0.15934]
[1750350238023,0.70570318,104460.0,104450.0,0.0011]
[1750350238218,0.70570318,104460.0,104450.0,0.15738]
[1750350238677,0.70570318,104460.0,104450.0,0.34885917]
[1750350239104,0.70570318,104460.0,104450.0,0.34785917]
[1750350239334,0.70570318,104460.0,104450.0,0.39493312]
[1750350239559,0.70570318,104460.0,104450.0,0.39093312]
[1750350239769,0.70570318,104460.0,104450.0,0.38893312]
[1750350239975,0.70570318,104460.0,104450.0,0.39093312]
[1750350240198,0.70570318,104460.0,104450.0,0.39193312]
[1750350241291,0.70570318,104460.0,104450.0,0.39189312]
[1750350241723,0.70570318,104460.0,104450.0,0.42389312]
[1750350242594,0.70570318,104460.0,104450.0,0.43346698]
[1750350243481,0.21060645,104460.0,104450.0,0.43346698]
[1750350243688,0.70570318,104460.0,104450.0,0.43346698]
[1750350244346,0.21060645,104460.0,104450.0,0.43346698]
[1750350244563,0.71527622,104460.0,104450.0,0.52085206]
[1750350245215,0.71527622,104460.0,104450.0,0.53042537]
[1750350246082,0.71527622,104460.0,104450.0,0.52085206]
[1750350246350,0.34957175,104470.0,104460.0,0.07037295]
[1750350246576,0.34957175,104470.0,104460.0,0.37624871]
[1750350246577,0.35914323,104470.0,104460.0,0.37624871]
[1750350246803,0.34957148,104470.0,104460.0,0.37624871]
[1750350247024,0.00957139,104470.0,104460.0,0.37624871]
[1750350247265,0.01914305,104470.0,104460.0,0.37624871]
[1750350247706,0.0287149,104470.0,104460.0,0.37724871]
[1750350247931,0.0287149,104470.0,104460.0,0.37924871]
[1750350248125,0.01914305,104470.0,104460.0,0.37924871]
[1750350249203,0.01914296,104470.0,104460.0,0.37924871]
[1750350249419,0.02871471,104470.0,104460.0,0.37924871]
[1750350249648,0.01914296,104470.0,104460.0,0.37924871]
[1750350249866,0.01914296,104470.0,104460.0,0.28397886]
[1750350250503,0.02871471,104470.0,104460.0,0.28397886]
[1750350250728,0.01914296,104470.0,104460.0,0.28397886]
[1750350251007,0.02871471,104470.0,104460.0,0.28397886]
[1750350251229,0.01914296,104470.0,104460.0,0.28397886]
[1750350251688,0.02871471,104470.0,104460.0,0.28397886]
[1750350252141,0.02871462,104470.0,104460.0,0.28397886]
[1750350252367,0.01914296,104470.0,104460.0,0.28397886]
[1750350253523,0.02871471,104470.0,104460.0,0.28397886]
[1750350255089,0.01914296,104470.0,104460.0,0.28397886]
[1750350255308,0.02871471,104470.0,104460.0,0.28397886]
[1750350256672,0.35914159,104480.0,104470.0,0.28515777]
[1750350256902,0.4090727,104480.0,104470.0,0.44119777]
[1750350257130,0.90416943,104480.0,104470.0,0.44119777]
[1750350257803,1.10516482,104480.0,104470.0,0.44119777]
[1750350258300,0.91374063,104480.0,104470.0,0.44119777]
[1750350259019,1.10516482,104480.0,104470.0,0.44119777]
[1750350260674,1.10516482,104480.0,104470.0,0.43162629]
[1750350260919,1.10516482,104480.0,104470.0,0.44119795]
[1750350262006,1.09559416,104480.0,104470.0,0.43162629]
[1750350263945,1.09559416,104480.0,104470.0,0.44119795]
[1750350264152,1.09559416,104480.0,104470.0,0.45076952]
[1750350264571,1.09559416,104480.0,104470.0,0.44119795]
[1750350265327,1.09559416,104480.0,104470.0,0.45210186]
[1750350265539,1.09559416,104480.0,104470.0,0.4425302]
[1750350267583,1.09559416,104480.0,104470.0,0.45210186]
[1750350268644,1.09559416,104480.0,104470.0,0.44119795]
[1750350268826,1.09559416,104480.0,104470.0,0.43162629]
[1750350269036,1.08602323,104480.0,104470.0,0.43162629]
[1750350269188,1.08602323,104480.0,104470.0,0.42205454]
[1750350269408,1.08602323,104480.0,104470.0,0.43162648]
[1750350270465,1.07645212,104480.0,104470.0,0.43162648]
[1750350270682,1.06688092,104480.0,104470.0,0.43162648]
[1750350271232,1.06688092,104480.0,104470.0,0.44119833]
[1750350271450,1.06688092,104480.0,104470.0,0.45077008]
[1750350273746,1.06688092,104480.0,104470.0,0.5200138]
[1750350274475,1.06688092,104480.0,104470.0,0.45077008]
[1750350274954,1.06688092,104480.0,104470.0,0.46034174]
[1750350274955,1.06705377,104480.0,104470.0,0.46034174]
[1750350275178,1.08619526,104480.0,104470.0,0.46034119]
[1750350275413,0.89477107,104480.0,104470.0,0.46034119]
[1750350275643,1.09576637,104480.0,104470.0,0.46034119]
[1750350275866,1.09576637,104480.0,104470.0,0.55561104]
[1750350276338,1.10533757,104480.0,104470.0,0.55561104]
[1750350276996,1.10530287,104480.0,104470.0,0.46034119]
[1750350277237,0.91387823,104480.0,104470.0,0.46034119]
[1750350277447,0.90430712,104480.0,104470.0,0.46034119]
[1750350278098,0.40907224,104480.0,104470.0,0.46034119]
[1750350278311,0.61006754,104480.0,104470.0,0.46034119]
[1750350280076,0.61963874,104480.0,104470.0,0.46034119]
[1750350280930,1.11487362,104480.0,104470.0,0.46034119]
[1750350281678,1.11487362,104480.0,104470.0,0.5512464]
[1750350281679,0.35914122,104480.0,104470.0,0.5512464]
[1750350281895,0.06907215,104480.0,104470.0,0.57982157]
[1750350282757,0.07864317,104480.0,104470.0,0.57982157]
[1750350282968,0.55199974,104490.0,104480.0,0.22013698]
[1750350283183,0.39950012,104490.0,104480.0,0.34068386]
[1750350283394,0.40906968,104490.0,104480.0,0.34068386]
[1750350284671,0.60047555,104490.0,104480.0,0.34068386]
[1750350284885,0.61004575,104490.0,104480.0,0.34068386]
[1750350285746,0.41863988,104490.0,104480.0,0.34168386]
[1750350287225,0.41863988,104490.0,104480.0,0.34368386]
[1750350288495,0.91387476,104490.0,104480.0,0.34368386]
[1750350289572,0.36870968,104490.0,104480.0,0.43896279]
[1750350289781,0.90418456,104490.0,104480.0,0.43896279]
[1750350291892,1.10516072,104490.0,104480.0,0.39238647]
[1750350292533,0.91375485,104490.0,104480.0,0.39238647]
[1750350294917,1.10516072,104490.0,104480.0,0.39238647]
[1750350295361,0.90418456,104490.0,104480.0,0.39238647]
[1750350295572,0.05937957,104490.0,104480.0,0.39238647]
[1750350295788,0.06894968,104490.0,104480.0,0.48309117]
[1750350296909,0.56409048,104490.0,104480.0,0.48309117]
[1750350297986,0.76506655,104490.0,104480.0,0.48309117]
[1750350298200,0.76506719,104490.0,104480.0,0.38281591]
[1750350298831,0.76506719,104490.0,104480.0,0.39238647]
[1750350299678,0.76506719,104490.0,104480.0,0.37324525]
[1750350299885,0.76506719,104490.0,104480.0,0.382816]
[1750350300095,0.76506719,104490.0,104480.0,0.3961777]
[1750350300766,0.75549727,104490.0,104480.0,0.5520177]
[1750350300982,0.75549727,104490.0,104480.0,0.52908525]
[1750350301194,0.75549727,104490.0,104480.0,0.53865609]
[1750350302893,0.75549727,104490.0,104480.0,0.54822684]
[1750350303117,0.75549727,104490.0,104480.0,0.5577975]
[1750350303543,0.55452111,104490.0,104480.0,0.55779686]
[1750350303761,0.74592698,104490.0,104480.0,0.65306671]
[1750350304216,0.74592698,104490.0,104480.0,0.5482263]
[1750350304217,0.75549727,104490.0,104480.0,0.5482263]
[1750350304484,0.75549727,104490.0,104480.0,0.53865564]
[1750350304926,0.75549727,104490.0,104480.0,0.5482263]
[1750350306215,0.5640914,104490.0,104480.0,0.55779686]
[1750350306424,0.75549727,104490.0,104480.0,0.55779686]
[1750350306847,0.75549727,104490.0,104480.0,0.5482263]
[1750350307521,0.75549727,104490.0,104480.0,0.56878827]
[1750350307930,0.75549727,104490.0,104480.0,0.55921761]
[1750350308759,0.75549727,104490.0,104480.0,0.5482263]
[1750350308968,0.75549727,104490.0,104480.0,0.57678573]
[1750350309605,0.73635696,104490.0,104480.0,0.03155943]
[1750350309847,1.65223691,104490.0,104480.0,0.003]
[1750350310060,1.78524301,104490.0,104480.0,0.003]
[1750350310699,1.68997316,104490.0,104480.0,0.002]
[1750350311157,1.78525209,104490.0,104480.0,0.002]
[1750350311373,6.84979294,104490.0,104480.0,0.002]
[1750350311587,0.60239521,104480.0,104470.0,0.15584]
[1750350311823,0.20101454,104470.0,104460.0,0.44702634]
[1750350312086,0.73639534,104470.0,104460.0,0.44702634]
[1750350312931,0.74622351,104470.0,104460.0,0.45659901]
[1750350313567,0.74622351,104470.0,104460.0,0.44702634]
[1750350313780,0.74622351,104470.0,104460.0,0.4565991]
[1750350314200,0.74622351,104470.0,104460.0,0.47574435]
[1750350314419,0.75579508,104470.0,104460.0,0.4777438]
[1750350314648,0.75579508,104470.0,104460.0,0.50280734]
[1750350314850,0.75579508,104470.0,104460.0,0.4817438]
[1750350316105,0.56435257,104470.0,104460.0,0.48174335]
[1750350316735,0.75579508,104470.0,104460.0,0.48174335]
[1750350317414,0.05938342,104470.0,104460.0,0.48174335]
[1750350317630,0.05938287,104470.0,104460.0,0.48174335]
[1750350317843,0.05938287,104470.0,104460.0,0.55193154]
[1750350318074,0.5739235,104470.0,104460.0,0.55193154]
[1750350318560,0.5739235,104470.0,104460.0,0.48174335]
[1750350318808,0.77493795,104470.0,104460.0,0.48174335]
[1750350319028,0.57392414,104470.0,104460.0,0.48174335]
[1750350320111,0.58349617,104470.0,104460.0,0.48174335]
[1750350322280,0.39763882,104470.0,104460.0,0.48174335]
[1750350322564,0.41678242,104470.0,104460.0,0.48174335]
[1750350322791,0.41678242,104470.0,104460.0,0.55193154]
[1750350323253,0.41678224,104470.0,104460.0,0.55193154]
[1750350324655,0.42635381,104470.0,104460.0,0.55193154]
[1750350325306,0.42635381,104470.0,104460.0,0.48174335]
[1750350325996,0.03828702,104470.0,104460.0,0.48174335]
[1750350326240,0.53368414,104470.0,104460.0,0.48174335]
[1750350328075,0.72512665,104470.0,104460.0,0.48174335]
[1750350328241,0.73469868,104470.0,104460.0,0.48174335]
[1750350328489,0.54325617,104470.0,104460.0,0.48174335]
[1750350329221,0.54325617,104470.0,104460.0,0.55193023]
[1750350329374,0.53368414,104470.0,104460.0,0.55193023]
[1750350330027,0.53368414,104470.0,104460.0,0.48174335]
[1750350331883,0.54325617,104470.0,104460.0,0.48174335]
[1750350332544,0.02871508,104470.0,104460.0,0.48174335]
[1750350332751,0.53368414,104470.0,104460.0,0.48174335]
[1750350332932,0.533616,104470.0,104460.0,0.48174335]
[1750350333349,0.73463054,104470.0,104460.0,0.5770132]
[1750350334200,0.73463054,104470.0,104460.0,0.48174335]
[1750350335288,0.72505897,104470.0,104460.0,0.47217095]
[1750350335707,0.72505897,104470.0,104460.0,0.46259846]
[1750350336581,0.72505897,104470.0,104460.0,0.47217095]
[1750350336750,0.53361646,104470.0,104460.0,0.48174335]
[1750350338547,0.53361646,104470.0,104460.0,0.51028967]
[1750350338985,0.53361646,104470.0,104460.0,0.60555952]
[1750350339168,0.72505897,104470.0,104460.0,0.60555952]
[1750350340152,0.73463109,104470.0,104460.0,0.60555952]
[1750350341515,0.73463109,104470.0,104460.0,0.51028967]
[1750350342158,0.23930211,104470.0,104460.0,0.51028967]
[1750350342370,0.73463109,104470.0,104460.0,0.51028967]
[1750350342584,0.23930211,104470.0,104460.0,0.51028967]
[1750350342805,0.73463109,104470.0,104460.0,0.51028967]
[1750350343197,0.23930211,104470.0,104460.0,0.51028967]
[1750350343433,0.73463109,104470.0,104460.0,0.60555952]
[1750350343616,0.73463109,104470.0,104460.0,0.59598712]
[1750350343848,0.73463109,104470.0,104460.0,0.59607808]
[1750350344259,0.73463109,104470.0,104460.0,0.50080823]
[1750350347919,0.73463109,104470.0,104460.0,0.51038063]
[1750350348124,0.53361646,104470.0,104460.0,0.51038063]
[1750350348328,0.72505897,104470.0,104460.0,0.51038063]
[1750350348996,0.73463109,104470.0,104460.0,0.51038063]
[1750350349658,0.73463109,104470.0,104460.0,0.50080823]
[1750350350743,0.72505943,104470.0,104460.0,0.50080823]
[1750350350960,0.71548758,104470.0,104460.0,0.49123574]
[1750350352429,0.2201586,104470.0,104460.0,0.58650559]
[1750350352631,0.71548758,104470.0,104460.0,0.58650559]
[1750350353285,0.71548758,104470.0,104460.0,0.49123574]
[1750350353509,0.71548758,104470.0,104460.0,0.50080823]
[1750350353932,0.71548758,104470.0,104460.0,0.49119574]
[1750350354416,0.71548758,104470.0,104460.0,0.50076823]
[1750350354620,0.71548758,104470.0,104460.0,0.51034063]
[1750350354836,0.52404507,104470.0,104460.0,0.60561048]
[1750350355270,0.51447295,104470.0,104460.0,0.60561048]
[1750350356342,0.71548758,104470.0,104460.0,0.51034063]
[1750350357005,0.51447295,104470.0,104460.0,0.51034063]
[1750350357461,0.01914397,104470.0,104460.0,0.51034063]
[1750350357670,0.51447295,104470.0,104460.0,0.51034063]
[1750350357893,0.00957148,104470.0,104460.0,0.50076741]
[1750350358169,0.36871261,104480.0,104470.0,0.28415768]
[1750350358394,0.01914104,104480.0,104470.0,0.81768714]
[1750350358614,0.01914104,104480.0,104470.0,0.32235816]
[1750350359245,0.02871188,104480.0,104470.0,0.32435816]
[1750350359461,0.02871188,104480.0,104470.0,0.32535816]
[1750350359671,0.02871188,104480.0,104470.0,0.42062801]
[1750350359874,0.02871179,104480.0,104470.0,0.42062801]
[1750350360240,0.03828272,104480.0,104470.0,0.42062801]
[1750350360467,0.5336117,104480.0,104470.0,0.42062801]
[1750350360836,0.53361161,104480.0,104470.0,0.42062801]